[Event "African Games-chT 2019"]
[Site "Casablanca"]
[Date "2019.08.25"]
[Round "9.9"]
[White "Oatlhotse, Providence"]
[Black "Makoto, Rodwell"]
[Result "1/2-1/2"]
[ECO "A36"]
[WhiteElo "2252"]
[BlackElo "2373"]
[Annotator "NA"]
[PlyCount "136"]
[EventDate "2019.08.24"]
[EventType "team-tourn"]
[EventCountry "MAR"]
[SourceTitle "playchess.com"]
[Source "ChessBase"]
[SourceQuality "1"]
[WhiteTeam "Botswana"]
[BlackTeam "Zimbabwe"]
[WhiteTeamCountry "BOT"]
[BlackTeamCountry "ZIM"]
[TimeControl "900+10"]

1. c4 {[%emt 0:00:00]} c5 {[%emt 0:00:00]} 2. g3 {[%emt 0:00:00]} Nc6 {[%emt 0:00:00]} 3. Bg2 {[%emt 0:00:00]} g6 {[%emt 0:00:00]} 4. Nc3 {[%emt 0:00:00]} Bg7 {[%emt 0:00:00]} 5. d3 {[%emt 0:00:00]} e6 {[%emt 0:00:00]} 6. e3 {[%emt 0:01:20]} Nge7 {[%emt 0:00:01]} 7. Nge2 {[%emt 0:00:02]} O-O {[%emt 0:00:06]} 8. O-O {[%emt 0:00:11]} d5 {[%emt 0:00:21]} 9. cxd5 {[%emt 0:01:32]} exd5 {[%emt 0:00:01]} 10. Nf4 {[%emt 0:00:01]} d4 {[%emt 0:00:05]} 11. Ne4 {[%emt 0:01:56]} b6 {[%emt 0:00:04]} 12. Qb3 {[%emt 0:01:11]} Rb8 {[%emt 0:00:46]} 13. Bd2 {[%emt 0:00:10]} Bb7 {[%emt 0:01:08]} 14. Ng5 {[%emt 0:01:08]} dxe3 {[%emt 0:01:15]} 15. fxe3 {[%emt 0:00:17]} Na5 {[%emt 0:00:01]} 16. Bxa5 {[%emt 0:00:57]} Bxg2 {[%emt 0:00:02]} 17. Bc3 {[%emt 0:04:23]} Bxc3 {[%emt 0:01:28]} 18. Nxg2 {[%emt 0:02:56]} Nf5 {[%emt 0:05:10]} 19. Nxf7 {[%emt 0:00:22]} Rxf7 {[%emt 0:00:01]} 20. Qxc3 {[%emt 0:00:13]} Qe7 {[%emt 0:01:44]} 21. Rae1 {[%emt 0:00:07]} Re8 {[%emt 0:00:07]} 22. Rf2 {[%emt 0:00:39]} Qe5 {[%emt 0:00:53]} 23. Qxe5 {[%emt 0:00:18]} Rxe5 {[%emt 0:00:01]} 24. Rfe2 {[%emt 0:00:03]} Rd7 {[%emt 0:00:02]} 25. Rd2 {[%emt 0:00:17]} Rde7 {[%emt 0:00:05]} 26. Rde2 {[%emt 0:00:13]} Rd7 {[%emt 0:00:01]} 27. g4 {[%emt 0:00:17]} Nh6 {[%emt 0:00:07]} 28. d4 {[%emt 0:00:40]} cxd4 {[%emt 0:00:10]} 29. exd4 {[%emt 0:00:01]} Rxe2 {[%emt 0:00:12]} 30. Rxe2 {[%emt 0:00:01]} Nxg4 {[%emt 0:00:22]} 31. Rd2 {[%emt 0:00:06]} Kf7 {[%emt 0:00:09]} 32. h3 {[%emt 0:00:05]} Nf6 {[%emt 0:00:01]} 33. Ne3 {[%emt 0:00:14]} Ne4 {[%emt 0:00:32]} 34. Rd1 {[%emt 0:00:34]} Ng5 {[%emt 0:00:41]} 35. Kg2 {[%emt 0:00:18]} Ke6 {[%emt 0:00:32]} 36. d5+ {[%emt 0:00:14]} Kd6 {[%emt 0:00:22]} 37. b4 {[%emt 0:00:08]} b5 {[%emt 0:00:25]} 38. Rc1 {[%emt 0:00:11]} Ke5 {[%emt 0:00:16]} 39. Ng4+ {[%emt 0:00:12]} Kd4 {[%emt 0:00:17]} 40. Rd1+ {[%emt 0:00:01]} Kc3 {[%emt 0:00:03]} 41. Nf6 {[%emt 0:00:14]} Rd6 {[%emt 0:00:14]} 42. Ne8 {[%emt 0:00:03]} Rd8 {[%emt 0:00:01]} 43. Nc7 {[%emt 0:00:08]} Kxb4 {[%emt 0:00:10]} 44. h4 {[%emt 0:00:23]} Nf7 {[%emt 0:00:08]} 45. Rb1+ {[%emt 0:00:09]} Kc4 {[%emt 0:00:10]} 46. Rc1+ {[%emt 0:00:06]} Kb4 {[%emt 0:00:29]} 47. Rb1+ {[%emt 0:00:07]} Kc4 {[%emt 0:00:04]} 48. Rc1+ {[%emt 0:00:06]} Kb4 {[%emt 0:00:07]} 49. Rb1+ {[%emt 0:00:22]} Kc4 {[%emt 0:00:06]} 50. Rc1+ {[%emt 0:00:11]} Kb4 {[%emt 0:00:50]} 51. Rb1+ {[%emt 0:00:10]} Kc4 {[%emt 0:00:04]} 52. Rxb5 {[%emt 0:00:10]} Rd7 {[%emt 0:00:03]} 53. Rb7 {[%emt 0:00:04]} a5 {[%emt 0:00:15]} 54. Ra7 {[%emt 0:00:06]} Nd6 {[%emt 0:00:26]} 55. Kf3 {[%emt 0:00:17]} Nc8 {[%emt 0:01:22]} 56. Rb7 {[%emt 0:00:11]} Ne7 {[%emt 0:00:24]} 57. d6 {[%emt 0:00:10]} Nf5 {[%emt 0:00:29]} 58. Rb6 {[%emt 0:00:14]} Nxd6 {[%emt 0:00:15]} 59. Ne6 {[%emt 0:00:06]} Nf5 {[%emt 0:00:05]} 60. Rc6+ {[%emt 0:00:11]} Kd5 {[%emt 0:00:12]} 61. Ra6 {[%emt 0:00:05]} Nxh4+ {[%emt 0:00:08]} 62. Kg4 {[%emt 0:00:05]} Nf5 {[%emt 0:00:05]} 63. Nf4+ {[%emt 0:00:05]} Ke4 {[%emt 0:00:11]} 64. Rxa5 Ne3+ {[%emt 0:00:41]} 65. Kg3 {[%emt 0:00:26]} Nf5+ {[%emt 0:00:13]} 66. Kg4 {[%emt 0:00:01]} Ne3+ {[%emt 0:00:13]} 67. Kg3 {[%emt 0:00:20]} Nf5+ {[%emt 0:00:14]} 68. Kg4 {[%emt 0:00:13]} Ne3+ {[%emt 0:00:14]} 1/2-1/2

[Event "African Games-chT 2019"]
[Site "Casablanca"]
[Date "2019.08.25"]
[Round "9.10"]
[White "Mushore, Emarald Takudzwa"]
[Black "Khetho, Phemelo"]
[Result "1/2-1/2"]
[ECO "C42"]
[WhiteElo "2198"]
[BlackElo "2178"]
[Annotator "NA"]
[PlyCount "51"]
[EventDate "2019.08.24"]
[EventType "team-tourn"]
[EventCountry "MAR"]
[SourceTitle "playchess.com"]
[Source "ChessBase"]
[SourceQuality "1"]
[WhiteTeam "Zimbabwe"]
[BlackTeam "Botswana"]
[WhiteTeamCountry "ZIM"]
[BlackTeamCountry "BOT"]
[TimeControl "900+10"]

1. e4 {[%emt 0:00:00]} e5 {[%emt 0:00:00]} 2. Nf3 {[%emt 0:00:00]} Nf6 {[%emt 0:00:00]} 3. Nxe5 {[%emt 0:00:00]} d6 {[%emt 0:00:00]} 4. Nf3 {[%emt 0:00:00]} Nxe4 {[%emt 0:00:02]} 5. Nc3 {[%emt 0:00:00]} Nxc3 {[%emt 0:00:10]} 6. dxc3 {[%emt 0:00:01]} Be7 {[%emt 0:00:05]} 7. Be3 {[%emt 0:00:01]} Be6 {[%emt 0:00:14]} 8. Qd2 {[%emt 0:00:02]} Qd7 {[%emt 0:00:14]} 9. O-O-O {[%emt 0:00:03]} a6 {[%emt 0:00:10]} 10. Kb1 {[%emt 0:00:06]} Nc6 {[%emt 0:00:02]} 11. Nd4 {[%emt 0:00:13]} Nxd4 {[%emt 0:00:27]} 12. cxd4 {[%emt 0:00:05]} d5 {[%emt 0:00:04]} 13. Bg5 {[%emt 0:00:15]} O-O-O {[%emt 0:01:34]} 14. Bd3 {[%emt 0:00:22]} h6 {[%emt 0:00:24]} 15. Bxe7 {[%emt 0:00:04]} Qxe7 {[%emt 0:00:02]} 16. Rhe1 {[%emt 0:00:02]} Qh4 {[%emt 0:00:46]} 17. f4 {[%emt 0:03:29]} Qxh2 {[%emt 0:01:21]} 18. f5 {[%emt 0:00:13]} Bd7 {[%emt 0:00:04]} 19. Re7 {[%emt 0:00:05]} Rhf8 {[%emt 0:01:08]} 20. Qb4 {[%emt 0:00:18]} Qd6 {[%emt 0:00:40]} 21. Qxd6 {[%emt 0:00:05]} cxd6 {[%emt 0:00:01]} 22. Re3 {[%emt 0:01:13]} f6 {[%emt 0:03:24]} 23. Kc1 {[%emt 0:00:12]} Rde8 {[%emt 0:00:04]} 24. Rg3 {[%emt 0:00:22]} Re7 {[%emt 0:00:41]} 25. Kd2 {[%emt 0:00:03]} Rfe8 {[%emt 0:00:19]} 26. Rf1 {[%emt 0:00:07]} 1/2-1/2

[Event "African Games-chT 2019"]
[Site "Casablanca"]
[Date "2019.08.25"]
[Round "9.11"]
[White "Francis, Onkemetse"]
[Black "Shaba, Linda"]
[Result "1-0"]
[ECO "C05"]
[WhiteElo "1792"]
[BlackElo "1615"]
[Annotator "NA"]
[PlyCount "78"]
[EventDate "2019.08.24"]
[EventType "team-tourn"]
[EventCountry "MAR"]
[SourceTitle "playchess.com"]
[Source "ChessBase"]
[SourceQuality "1"]
[WhiteTeam "Botswana"]
[BlackTeam "Zimbabwe"]
[WhiteTeamCountry "BOT"]
[BlackTeamCountry "ZIM"]
[TimeControl "900+10"]

1. e4 {[%emt 0:00:00]} e6 {[%emt 0:00:00]} 2. d4 {[%emt 0:00:00]} d5 {[%emt 0:00:00]} 3. Nd2 {[%emt 0:00:18]} Nf6 {[%emt 0:00:00]} 4. e5 {[%emt 0:00:05]} Nfd7 {[%emt 0:00:00]} 5. f4 {[%emt 0:00:34]} c5 {[%emt 0:00:02]} 6. c3 {[%emt 0:00:10]} Nc6 {[%emt 0:00:03]} 7. Ngf3 {[%emt 0:00:00]} cxd4 {[%emt 0:01:09]} 8. cxd4 {[%emt 0:00:18]} Bb4 {[%emt 0:01:28]} 9. a3 {[%emt 0:00:45]} Be7 {[%emt 0:01:02]} 10. Be2 {[%emt 0:01:43]} O-O {[%emt 0:00:07]} 11. O-O {[%emt 0:00:13]} f6 {[%emt 0:00:05]} 12. Nb3 {[%emt 0:00:42]} Qb6 {[%emt 0:00:42]} 13. Kh1 {[%emt 0:00:56]} a5 {[%emt 0:00:59]} 14. Qd3 {[%emt 0:01:34]} a4 {[%emt 0:03:32]} 15. Nbd2 {[%emt 0:00:05]} Na5 {[%emt 0:00:14]} 16. Qb5 {[%emt 0:01:35]} Qxb5 {[%emt 0:03:29]} 17. Bxb5 {[%emt 0:00:02]} Nb6 {[%emt 0:00:02]} 18. Rb1 {[%emt 0:01:31]} Bd7 {[%emt 0:01:17]} 19. Bxd7 {[%emt 0:01:00]} Nxd7 {[%emt 0:00:01]} 20. b4 {[%emt 0:00:02]} axb3 {[%emt 0:01:04]} 21. Nxb3 {[%emt 0:00:04]} Nc4 {[%emt 0:00:09]} 22. Nbd2 {[%emt 0:01:51]} Nxd2 {[%emt 0:02:21]} 23. Bxd2 {[%emt 0:00:19]} Rfb8 {[%emt 0:00:46]} 24. Bb4 {[%emt 0:01:27]} Bxb4 {[%emt 0:00:08]} 25. axb4 {[%emt 0:00:01]} Nb6 {[%emt 0:00:05]} 26. Ra1 {[%emt 0:00:59]} Nc4 {[%emt 0:00:06]} 27. h3 {[%emt 0:00:02]} Kf7 {[%emt 0:00:08]} 28. Kh2 {[%emt 0:01:23]} Rc8 {[%emt 0:00:09]} 29. Rfe1 {[%emt 0:00:20]} Rcb8 {[%emt 0:00:17]} 30. Kg3 {[%emt 0:00:48]} Rc8 {[%emt 0:00:01]} 31. Ng1 {[%emt 0:00:16]} Rcb8 {[%emt 0:00:08]} 32. Ne2 {[%emt 0:00:09]} Rc8 {[%emt 0:00:21]} 33. Kh2 {[%emt 0:00:11]} Nd2 {[%emt 0:00:08]} 34. Rec1 {[%emt 0:00:27]} Nc4 {[%emt 0:00:14]} 35. Ng1 {[%emt 0:00:24]} Rcb8 {[%emt 0:00:02]} 36. Ne2 {[%emt 0:00:02]} Rc8 {[%emt 0:00:01]} 37. Kg1 {[%emt 0:00:03]} Rcb8 {[%emt 0:00:08]} 38. Nc3 {[%emt 0:00:01]} Rc8 {[%emt 0:00:35]} 39. Na4 {[%emt 0:00:15]} Ne3 1-0

[Event "African Games-chT 2019"]
[Site "Casablanca"]
[Date "2019.08.25"]
[Round "9.12"]
[White "Wakuruwarewa, Colletta"]
[Black "Gabatshwarwe Refilwe"]
[Result "1-0"]
[ECO "C54"]
[WhiteElo "1587"]
[BlackElo "1649"]
[Annotator "NA"]
[PlyCount "53"]
[EventDate "2019.08.24"]
[EventType "team-tourn"]
[EventCountry "MAR"]
[SourceTitle "playchess.com"]
[Source "ChessBase"]
[SourceQuality "1"]
[WhiteTeam "Zimbabwe"]
[BlackTeam "Botswana"]
[WhiteTeamCountry "ZIM"]
[BlackTeamCountry "BOT"]
[TimeControl "900+10"]

1. e4 {[%emt 0:00:00]} e5 {[%emt 0:00:00]} 2. Nf3 {[%emt 0:00:00]} Nc6 {[%emt 0:00:00]} 3. Bc4 {[%emt 0:00:07]} Bc5 {[%emt 0:00:00]} 4. c3 {[%emt 0:00:15]} Nf6 {[%emt 0:00:04]} 5. d3 {[%emt 0:00:04]} a6 {[%emt 0:00:06]} 6. h3 {[%emt 0:00:02]} d6 {[%emt 0:00:09]} 7. O-O {[%emt 0:00:17]} Ba7 {[%emt 0:00:01]} 8. Re1 {[%emt 0:00:41]} h6 {[%emt 0:00:33]} 9. Be3 {[%emt 0:00:07]} Bxe3 {[%emt 0:00:04]} 10. Rxe3 {[%emt 0:00:04]} Be6 {[%emt 0:00:14]} 11. Nbd2 {[%emt 0:00:11]} Na5 {[%emt 0:01:10]} 12. Bxe6 {[%emt 0:00:50]} fxe6 {[%emt 0:00:03]} 13. Nh2 {[%emt 0:00:28]} Qe7 {[%emt 0:00:49]} 14. Qa4+ {[%emt 0:00:34]} Nc6 {[%emt 0:00:13]} 15. Ndf3 {[%emt 0:00:35]} g5 {[%emt 0:00:58]} 16. d4 {[%emt 0:00:13]} b5 {[%emt 0:01:19]} 17. Qd1 {[%emt 0:00:22]} exd4 {[%emt 0:01:03]} 18. cxd4 {[%emt 0:00:32]} O-O {[%emt 0:00:57]} 19. Qc2 {[%emt 0:00:25]} Na7 {[%emt 0:02:05]} 20. e5 {[%emt 0:00:15]} Ne8 {[%emt 0:04:36]} 21. Qg6+ {[%emt 0:00:15]} Ng7 {[%emt 0:00:29]} 22. Ng4 {[%emt 0:00:27]} Kh8 {[%emt 0:03:21]} 23. Qxh6+ {[%emt 0:00:33]} Kg8 {[%emt 0:00:02]} 24. Qg6 {[%emt 0:00:31]} Kh8 {[%emt 0:00:07]} 25. Nxg5 {[%emt 0:01:48]} Nf5 {[%emt 0:00:20]} 26. Qh5+ {[%emt 0:00:32]} Kg8 {[%emt 0:00:18]} 27. Rf3 {[%emt 0:02:50]} 1-0

[Event "African Games-chT 2019"]
[Site "Casablanca"]
[Date "2019.08.25"]
[Round "9.13"]
[White "Hamdouchi, Hicham"]
[Black "Chumfwa, Stanley"]
[Result "1-0"]
[ECO "B23"]
[WhiteElo "2562"]
[BlackElo "2317"]
[Annotator "ChessBase"]
[PlyCount "179"]
[EventDate "2019.08.24"]
[EventType "team-tourn"]
[EventCountry "MAR"]
[SourceTitle "playchess.com"]
[Source "ChessBase"]
[SourceQuality "1"]
[WhiteTeam "Morocco"]
[BlackTeam "Zambia"]
[WhiteTeamCountry "MAR"]
[BlackTeamCountry "ZAM"]
[TimeControl "900+10"]

1. e4 {[%emt 0:00:00]} c5 {[%emt 0:00:00]} 2. Nc3 {[%emt 0:00:00]} d6 {[%emt 0:00:05]} 3. f4 {[%emt 0:00:00]} Nc6 {[%emt 0:00:04]} 4. Nf3 {[%emt 0:00:00]} g6 {[%emt 0:00:01]} 5. Bb5 {[%emt 0:00:15]} Bg7 {[%emt 0:00:04]} 6. O-O {[%emt 0:00:13]} Nf6 {[%emt 0:00:09]} 7. Bxc6+ {[%emt 0:00:06]} bxc6 {[%emt 0:00:04]} 8. d3 {[%emt 0:00:01]} O-O {[%emt 0:00:08]} 9. Qe1 {[%emt 0:00:02]} Rb8 {[%emt 0:00:05]} 10. b3 {[%emt 0:00:15]} Ne8 {[%emt 0:00:51]} 11. Bd2 {[%emt 0:00:10]} Nc7 {[%emt 0:01:58]} 12. f5 {[%emt 0:00:52]} gxf5 {[%emt 0:01:48]} 13. Qg3 {[%emt 0:01:01]} f6 {[%emt 0:00:26]} 14. exf5 {[%emt 0:00:55]} Bxf5 {[%emt 0:01:05]} 15. Nh4 {[%emt 0:00:03]} Bd7 {[%emt 0:00:04]} 16. Ne4 {[%emt 0:00:35]} Kh8 {[%emt 0:02:50]} 17. Rae1 {[%emt 0:01:12]} Nd5 {[%emt 0:02:04]} 18. a3 {[%emt 0:01:20]} Rb7 {[%emt 0:00:40]} 19. c4 {[%emt 0:01:01]} Nc7 {[%emt 0:00:30]} 20. b4 {[%emt 0:00:02]} cxb4 {[%emt 0:00:13]} 21. axb4 {[%emt 0:00:01]} Na6 {[%emt 0:00:22]} 22. Rb1 {[%emt 0:01:09]} d5 {[%emt 0:00:15]} 23. Nf2 {[%emt 0:03:29]} dxc4 {[%emt 0:00:34]} 24. dxc4 {[%emt 0:00:05]} Be6 {[%emt 0:00:31]} 25. Rfd1 {[%emt 0:00:24]} Rd7 {[%emt 0:00:28]} 26. Qc3 {[%emt 0:01:07]} f5 {[%emt 0:00:23]} 27. Qc2 {[%emt 0:00:04]} Qe8 {[%emt 0:01:08]} 28. Bc3 {[%emt 0:00:19]} Rxd1+ {[%emt 0:00:49]} 29. Rxd1 {[%emt 0:00:02]} Qh5 {[%emt 0:00:01]} 30. Bxg7+ Kxg7 {[%emt 0:00:02]} 31. Nf3 {[%emt 0:00:28]} Nb8 {[%emt 0:00:42]} 32. Re1 {[%emt 0:00:48]} Qh6 {[%emt 0:00:35]} 33. Nd4 {[%emt 0:01:07]} Bc8 {[%emt 0:00:33]} 34. Rxe7+ {[%emt 0:00:05]} Kg8 {[%emt 0:00:28]} 35. Qc3 {[%emt 0:01:43]} Qf6 {[%emt 0:00:07]} 36. Rc7 {[%emt 0:00:07]} Qe5 {[%emt 0:00:25]} 37. Qg3+ {[%emt 0:00:17]} Qxg3 {[%emt 0:00:03]} 38. hxg3 {[%emt 0:00:01]} Na6 {[%emt 0:00:04]} 39. Rxa7 {[%emt 0:00:29]} Nxb4 {[%emt 0:00:01]} 40. Nh3 {[%emt 0:00:09]} Rd8 {[%emt 0:00:24]} 41. Nf3 {[%emt 0:00:03]} Ba6 {[%emt 0:00:13]} 42. Ne5 {[%emt 0:00:41]} c5 {[%emt 0:00:22]} 43. Nf4 {[%emt 0:00:09]} Re8 {[%emt 0:00:13]} 44. Nh5 {[%emt 0:00:07]} Rxe5 45. Nf6+ {[%emt 0:00:09]} Kf8 {[%emt 0:00:13]} 46. Nd7+ {[%emt 0:00:01]} Ke7 {[%emt 0:00:01]} 47. Nxe5+ {[%emt 0:00:02]} Ke6 {[%emt 0:00:02]} 48. Nd7 {[%emt 0:00:28]} Kd6 {[%emt 0:00:02]} 49. Nb6 {[%emt 0:00:57]} Kc6 {[%emt 0:00:01]} 50. Na4 {[%emt 0:00:01]} Bxc4 {[%emt 0:00:08]} 51. Rxh7 {[%emt 0:00:01]} Bb3 {[%emt 0:00:12]} 52. Nc3 {[%emt 0:00:13]} c4 {[%emt 0:00:01]} 53. Kf2 {[%emt 0:00:14]} Kc5 {[%emt 0:00:07]} 54. Rh5 {[%emt 0:00:21]} Kd4 {[%emt 0:00:35]} 55. Nb5+ {[%emt 0:00:16]} Ke4 {[%emt 0:00:06]} 56. Nd6+ {[%emt 0:00:16]} Kd3 {[%emt 0:00:01]} 57. Nxc4 {[%emt 0:00:19]} Bxc4 {[%emt 0:00:16]} 58. Rxf5 {[%emt 0:00:01]} Ke4 {[%emt 0:00:17]} 59. g4 {[%emt 0:00:10]} Be6 {[%emt 0:00:17]} 60. Rb5 {[%emt 0:00:09]} Nd3+ {[%emt 0:00:05]} 61. Kg3 {[%emt 0:00:01]} Ne5 {[%emt 0:00:11]} 62. g5 {[%emt 0:00:02]} Kf5 {[%emt 0:00:31]} 63. Kh4 {[%emt 0:00:03]} Bf7 {[%emt 0:00:20]} 64. Ra5 {[%emt 0:00:45]} Be8 {[%emt 0:00:04]} 65. Rc5 {[%emt 0:00:01]} Bf7 {[%emt 0:00:03]} 66. Rb5 {[%emt 0:00:02]} Be8 {[%emt 0:00:01]} 67. Rb8 {[%emt 0:00:13]} Ng6+ {[%emt 0:00:17]} 68. Kh5 {[%emt 0:00:08]} Bf7 {[%emt 0:00:01]} 69. Rb5+ {[%emt 0:00:09]} Kf4 {[%emt 0:00:23]} 70. Kh6 {[%emt 0:00:07]} Nh4 {[%emt 0:00:17]} 71. Rb4+ {[%emt 0:00:24]} Kg3 {[%emt 0:00:08]} 72. Kg7 {[%emt 0:00:01]} Bd5 {[%emt 0:00:11]} 73. Kf6 {[%emt 0:00:19]} Bxg2 {[%emt 0:00:09]} 74. Rd4 {[%emt 0:00:16]} Bc6 {[%emt 0:00:14]} 75. Rc4 {[%emt 0:00:07]} Bd5 {[%emt 0:00:02]} 76. Rb4 {[%emt 0:00:02]} Ba2 {[%emt 0:00:02]} 77. Ra4 {[%emt 0:00:03]} Bd5 {[%emt 0:00:02]} 78. Rb4 {[%emt 0:00:22]} Ba2 {[%emt 0:00:04]} 79. Rb5 {[%emt 0:00:03]} Bc4 {[%emt 0:00:04]} 80. Ra5 {[%emt 0:00:01]} Bg8 {[%emt 0:00:04]} 81. Kg7 {[%emt 0:00:18]} Bc4 {[%emt 0:00:07]} 82. Kh6 {[%emt 0:00:08]} Be6 {[%emt 0:00:10]} 83. Rb5 {[%emt 0:00:09]} Ba2 {[%emt 0:00:15]} 84. Ra5 {[%emt 0:00:06]} Bc4 {[%emt 0:00:06]} 85. Ra7 {[%emt 0:00:08]} Bd5 {[%emt 0:00:06]} 86. Rc7 {[%emt 0:00:27]} Ba2 {[%emt 0:00:11]} 87. Kh5 {[%emt 0:00:01]} Bd5 {[%emt 0:00:12]} 88. Rc3+ {[%emt 0:00:12]} Bf3+ {[%emt 0:00:03]} 89. Rxf3+ {[%emt 0:00:05]} Nxf3 {[%emt 0:00:13]} 90. g6 {[%emt 0:00:01]} 1-0

[Event "African Games-chT 2019"]
[Site "Casablanca"]
[Date "2019.08.25"]
[Round "9.14"]
[White "Kayonde, Andrew"]
[Black "Tissir, Mohamed"]
[Result "1-0"]
[ECO "A46"]
[WhiteElo "2384"]
[BlackElo "2379"]
[Annotator "NA"]
[PlyCount "63"]
[EventDate "2019.08.24"]
[EventType "team-tourn"]
[EventCountry "MAR"]
[SourceTitle "playchess.com"]
[Source "ChessBase"]
[SourceQuality "1"]
[WhiteTeam "Zambia"]
[BlackTeam "Morocco"]
[WhiteTeamCountry "ZAM"]
[BlackTeamCountry "MAR"]
[TimeControl "900+10"]

1. d4 {[%emt 0:00:00]} e6 {[%emt 0:00:00]} 2. Nf3 {[%emt 0:00:06]} Nf6 {[%emt 0:01:11]} 3. e3 {[%emt 0:00:05]} b6 {[%emt 0:00:47]} 4. Bd3 {[%emt 0:00:07]} Bb7 {[%emt 0:00:01]} 5. O-O {[%emt 0:00:04]} c5 {[%emt 0:00:01]} 6. c4 {[%emt 0:00:28]} d6 {[%emt 0:01:05]} 7. Nc3 {[%emt 0:00:20]} Nbd7 {[%emt 0:00:10]} 8. Ng5 {[%emt 0:06:28]} Be7 {[%emt 0:00:34]} 9. f4 {[%emt 0:00:05]} a6 {[%emt 0:01:28]} 10. Bc2 {[%emt 0:00:54]} Qc7 {[%emt 0:04:00]} 11. d5 {[%emt 0:00:27]} e5 {[%emt 0:00:15]} 12. a4 {[%emt 0:00:23]} h6 {[%emt 0:01:41]} 13. Nf3 {[%emt 0:00:20]} exf4 {[%emt 0:00:02]} 14. exf4 {[%emt 0:00:05]} O-O-O {[%emt 0:00:01]} 15. a5 {[%emt 0:00:17]} Rde8 {[%emt 0:00:00]} 16. axb6 {[%emt 0:00:17]} Nxb6 {[%emt 0:00:01]} 17. b3 {[%emt 0:00:00]} Kb8 {[%emt 0:00:22]} 18. Na4 {[%emt 0:00:48]} Ng4 {[%emt 0:00:21]} 19. Qd3 {[%emt 0:01:06]} Bf6 {[%emt 0:00:06]} 20. Ra2 {[%emt 0:00:03]} Nxa4 {[%emt 0:00:15]} 21. Rxa4 {[%emt 0:00:19]} h5 {[%emt 0:01:09]} 22. h3 {[%emt 0:00:07]} Nh6 {[%emt 0:00:01]} 23. Be3 {[%emt 0:00:30]} Nf5 {[%emt 0:01:08]} 24. Bf2 {[%emt 0:00:05]} g6 {[%emt 0:00:00]} 25. b4 {[%emt 0:00:09]} Re7 {[%emt 0:02:49]} 26. Rb1 {[%emt 0:00:07]} Rhe8 {[%emt 0:00:55]} 27. bxc5 {[%emt 0:00:02]} dxc5 {[%emt 0:00:01]} 28. Rxa6 {[%emt 0:00:02]} Bd4 {[%emt 0:00:30]} 29. Nxd4 {[%emt 0:00:38]} cxd4 {[%emt 0:00:17]} 30. Qa3 {[%emt 0:00:17]} Qxf4 {[%emt 0:00:25]} 31. Ra8+ {[%emt 0:00:05]} Kc7 {[%emt 0:00:00]} 32. Rxb7+ {[%emt 0:00:03]} 1-0

[Event "African Games-chT 2019"]
[Site "Casablanca"]
[Date "2019.08.25"]
[Round "9.15"]
[White "Mayar ElIdrissi, Firdaous"]
[Black "Mwango, Lorita"]
[Result "0-1"]
[ECO "B13"]
[WhiteElo "1760"]
[BlackElo "1947"]
[Annotator "NA"]
[PlyCount "64"]
[EventDate "2019.08.24"]
[EventType "team-tourn"]
[EventCountry "MAR"]
[SourceTitle "playchess.com"]
[Source "ChessBase"]
[SourceQuality "1"]
[WhiteTeam "Morocco"]
[BlackTeam "Zambia"]
[WhiteTeamCountry "MAR"]
[BlackTeamCountry "ZAM"]
[TimeControl "900+10"]

1. e4 {[%emt 0:00:00]} c6 {[%emt 0:00:00]} 2. d4 {[%emt 0:00:00]} d5 {[%emt 0:00:00]} 3. exd5 {[%emt 0:00:00]} cxd5 {[%emt 0:00:00]} 4. Nf3 {[%emt 0:00:01]} Nf6 {[%emt 0:00:07]} 5. Be2 {[%emt 0:00:02]} Bf5 {[%emt 0:00:04]} 6. Nc3 {[%emt 0:00:11]} e6 {[%emt 0:00:56]} 7. O-O {[%emt 0:00:29]} Be7 {[%emt 0:00:03]} 8. Bf4 {[%emt 0:00:46]} O-O {[%emt 0:00:04]} 9. Nh4 {[%emt 0:01:26]} Bg6 {[%emt 0:00:14]} 10. Nxg6 {[%emt 0:00:02]} hxg6 {[%emt 0:00:01]} 11. Re1 {[%emt 0:00:26]} Nc6 {[%emt 0:00:07]} 12. Qd2 {[%emt 0:00:57]} a6 {[%emt 0:00:52]} 13. Be3 {[%emt 0:01:19]} Rc8 {[%emt 0:00:08]} 14. a3 {[%emt 0:00:06]} Qc7 {[%emt 0:00:44]} 15. h3 {[%emt 0:00:30]} Rfd8 {[%emt 0:00:36]} 16. f4 {[%emt 0:00:50]} Bd6 {[%emt 0:01:24]} 17. g4 {[%emt 0:00:59]} Ne7 {[%emt 0:01:56]} 18. Bd3 {[%emt 0:00:38]} Qd7 {[%emt 0:01:52]} 19. Qg2 {[%emt 0:00:31]} Rc7 {[%emt 0:01:07]} 20. Kf2 {[%emt 0:00:22]} Rdc8 {[%emt 0:00:04]} 21. Rh1 {[%emt 0:00:01]} Kf8 {[%emt 0:02:11]} 22. Ne2 {[%emt 0:00:06]} Qa4 {[%emt 0:00:13]} 23. Nc3 {[%emt 0:01:05]} Qa5 {[%emt 0:00:28]} 24. Bd2 {[%emt 0:00:17]} Qb6 {[%emt 0:00:06]} 25. Ne2 {[%emt 0:03:08]} Ne4+ {[%emt 0:02:55]} 26. Bxe4 {[%emt 0:00:52]} dxe4 {[%emt 0:00:13]} 27. Qxe4 {[%emt 0:00:04]} Rxc2 {[%emt 0:00:17]} 28. Bc3 {[%emt 0:00:21]} Qb3 {[%emt 0:00:02]} 29. Kf1 {[%emt 0:01:59]} Nd5 {[%emt 0:00:23]} 30. f5 {[%emt 0:02:09]} gxf5 {[%emt 0:00:28]} 31. gxf5 {[%emt 0:00:04]} exf5 {[%emt 0:00:15]} 32. Ke1 {[%emt 0:00:26]} fxe4 {[%emt 0:00:14]} 0-1

[Event "African Games-chT 2019"]
[Site "Casablanca"]
[Date "2019.08.25"]
[Round "9.16"]
[White "Mululu Linah"]
[Black "Rania, Sbai"]
[Result "0-1"]
[ECO "D04"]
[WhiteElo "1633"]
[BlackElo "1853"]
[Annotator "NA"]
[PlyCount "32"]
[EventDate "2019.08.24"]
[EventType "team-tourn"]
[EventCountry "MAR"]
[SourceTitle "playchess.com"]
[Source "ChessBase"]
[SourceQuality "1"]
[WhiteTeam "Zambia"]
[BlackTeam "Morocco"]
[WhiteTeamCountry "ZAM"]
[BlackTeamCountry "MAR"]
[TimeControl "900+10"]

1. d4 {[%emt 0:00:00]} d5 {[%emt 0:00:00]} 2. Nf3 {[%emt 0:00:00]} Nf6 {[%emt 0:00:13]} 3. e3 {[%emt 0:00:17]} Bg4 {[%emt 0:00:47]} 4. g3 {[%emt 0:00:18]} c6 {[%emt 0:01:18]} 5. Bg2 {[%emt 0:00:03]} Nbd7 {[%emt 0:00:03]} 6. Nbd2 {[%emt 0:00:05]} Qc7 {[%emt 0:01:02]} 7. c4 {[%emt 0:00:25]} e5 {[%emt 0:00:37]} 8. dxe5 {[%emt 0:00:12]} Nxe5 {[%emt 0:00:01]} 9. Qb3 {[%emt 0:00:13]} dxc4 {[%emt 0:01:05]} 10. Qc3 {[%emt 0:00:25]} Nd3+ {[%emt 0:02:39]} 11. Kf1 {[%emt 0:01:00]} Rd8 {[%emt 0:01:38]} 12. Qxc4 {[%emt 0:03:16]} Be6 {[%emt 0:00:12]} 13. Qa4 {[%emt 0:02:56]} Bb4 {[%emt 0:01:49]} 14. Nd4 {[%emt 0:02:10]} O-O {[%emt 0:03:07]} 15. Ne4 {[%emt 0:03:30]} Nd5 {[%emt 0:01:11]} 16. Qc2 {[%emt 0:02:13]} Ne1 {[%emt 0:01:00]} 0-1